bitfinex-derivatives/quotes_SOLF0:USTF0_20250625
["timestamp","ask_amount","ask_price","bid_price","bid_amount"]
[1750885892617,6.9153,144.53,144.49,41.68582466]
[1750885893718,6.9153,144.53,144.5,6.9166]
[1750885894222,37.42,144.56,144.49,48.60272466]
[1750885894419,9.56892233,144.55,144.48,8.5488916]
[1750885894610,4.38582466,144.53,144.47,8.5488916]
[1750885894808,6.9164,144.51,144.48,6.9172]
[1750885895011,4.38582466,144.53,144.47,8.5488916]
[1750885895419,6.9166,144.5,144.47,15.4666916]
[1750885895618,4.38582466,144.53,144.47,8.5488916]
[1750885895922,6.9163,144.51,144.48,6.9175]
[1750885896221,6.9163,144.51,144.47,8.5488916]
[1750885897218,6.9163,144.51,144.47,15.4665916]
[1750885897718,4.38582466,144.53,144.46,52.7671916]
[1750885897917,4.38582466,144.53,144.46,45.8488916]
[1750885898121,6.9167,144.5,144.47,6.9178]
[1750885901218,6.9167,144.5,144.46,52.7671916]
[1750885901523,6.9171,144.49,144.46,52.7671916]
[1750885901720,4.38582466,144.53,144.46,52.7671916]
[1750885902027,4.38582466,144.53,144.47,6.918]
[1750885902424,6.9168,144.5,144.47,6.918]
[1750885902633,6.9168,144.5,144.46,45.8488916]
[1750885903010,4.38582466,144.55,144.49,6.917]
[1750885903209,5.2002031,144.54,144.49,6.917]
[1750885903426,5.2002031,144.53,144.49,6.917]
[1750885903621,4.38582466,144.55,144.49,6.917]
[1750885903824,6.9159,144.52,144.49,6.917]
[1750885904325,6.9161,144.51,144.48,6.9173]
[1750885906328,6.9169,144.5,144.47,15.4665916]
[1750885906724,5.20467797,144.52,144.47,15.4665916]
[1750885906913,6.9171,144.49,144.46,52.7671916]
[1750885907627,6.9171,144.49,144.47,8.5488916]
[1750885907827,6.9171,144.49,144.46,52.7671916]
[1750885908530,6.9171,144.49,144.47,8.5488916]
[1750885910224,6.9168,144.5,144.47,15.4667916]
[1750885911631,6.9168,144.5,144.48,8.5488916]
[1750885911927,6.9168,144.5,144.47,15.4667916]
[1750885912132,6.9171,144.49,144.47,8.5488916]
[1750885912331,6.9171,144.49,144.46,61.31211318]
[1750885912630,6.9177,144.48,144.46,50.00798852]
[1750885912929,4.38582466,144.51,144.46,12.70798852]
[1750885913229,4.38582466,144.49,144.45,12.70798852]
[1750885913422,5.23317339,144.48,144.47,8.61592141]
[1750885913822,5.23307128,144.48,144.47,8.61592141]
[1750885914021,12.15057128,144.48,144.47,8.61592141]
[1750885915330,6.9187,144.46,144.44,6.9195]
[1750885917522,6.9187,144.46,144.43,44.2197]
[1750885917921,41.912,144.52,144.45,4.38700903]
[1750885918118,9.63525834,144.51,144.45,4.38700903]
[1750885918322,6.9171,144.49,144.45,4.38700903]
[1750885919032,6.9171,144.49,144.46,6.9182]
[1750885921135,6.9178,144.48,144.43,37.3]
[1750885921731,6.9181,144.47,144.44,6.9192]
[1750885922232,6.9181,144.47,144.43,44.2197]
[1750885923529,6.9177,144.48,144.43,37.3]
[1750885923934,6.9177,144.48,144.44,6.9191]
[1750885924237,6.9181,144.47,144.44,6.9191]
[1750885925033,41.792,144.52,144.44,4.38700903]
[1750885925241,5.22364988,144.51,144.48,4.38700903]
[1750885925443,5.22364988,144.5,144.48,4.38700903]
[1750885925629,6.9164,144.51,144.47,6.9177]
[1750885925830,6.9164,144.51,144.47,15.5240544]
[1750885926239,6.9168,144.5,144.47,15.5240544]
[1750885927527,6.9168,144.5,144.47,6.9177]
[1750885928034,6.9171,144.49,144.46,19.91166343]
[1750885928539,6.9168,144.5,144.46,19.91166343]
[1750885928749,37.18,144.52,144.46,8.6063544]
[1750885929039,9.6112638,144.51,144.46,8.6063544]
[1750885929243,6.9174,144.49,144.46,8.6063544]
[1750885929741,6.9174,144.49,144.46,15.5247544]
[1750885930640,6.9174,144.49,144.47,8.6063544]
[1750885932643,6.9175,144.48,144.47,8.6063544]
[1750885933845,5.23344787,144.48,144.45,8.6063544]
[1750885934038,4.38700903,144.49,144.45,8.6063544]
[1750885934238,5.23251322,144.48,144.45,8.6063544]
[1750885934561,6.9184,144.47,144.45,8.6063544]
[1750885934744,6.9184,144.47,144.44,15.5255544]
[1750885936548,6.9177,144.48,144.44,8.6063544]
[1750885937041,6.9177,144.48,144.45,6.9187]
[1750885938453,6.9177,144.48,144.45,15.5250544]
[1750885938747,6.9171,144.49,144.46,6.9183]
[1750885938933,5.2230724,144.48,144.46,6.9183]
[1750885939139,6.9171,144.49,144.46,6.9183]
[1750885939539,6.9167,144.5,144.47,6.9179]
[1750885939748,41.8527,144.52,144.47,6.9179]
[1750885939937,5.24818142,144.51,144.46,8.6063544]
[1750885940137,5.24818142,144.5,144.47,6.9177]
[1750885940347,5.24818142,144.49,144.46,12.99336343]
[1750885940543,37.18,144.52,144.46,12.99336343]
[1750885940744,12.16493435,144.51,144.46,12.99336343]
[1750885940954,5.24853435,144.5,144.47,8.6063544]
[1750885941145,6.9164,144.51,144.48,6.9175]
[1750885941348,5.24851032,144.5,144.48,6.9175]
[1750885941549,6.9164,144.51,144.48,6.9175]
[1750885941860,5.2485118,144.5,144.48,6.9175]
[1750885942048,6.9164,144.51,144.48,6.9175]
[1750885942250,12.16503779,144.5,144.47,15.5241544]
[1750885942454,6.9166,144.5,144.47,15.5241544]
[1750885944555,6.9163,144.51,144.48,6.9175]
[1750885944746,5.23952674,144.5,144.48,6.9175]
[1750885945051,6.9163,144.51,144.48,6.9175]
[1750885945551,5.23826542,144.5,144.47,15.5241544]
[1750885945755,6.9163,144.51,144.47,15.5241544]
[1750885945954,5.23866754,144.5,144.47,15.5241544]
[1750885946249,6.9163,144.51,144.47,15.5241544]
[1750885946558,12.15508597,144.5,144.47,15.5241544]
[1750885946745,6.9166,144.5,144.47,15.5241544]
[1750885947053,6.9164,144.51,144.48,6.9175]
[1750885947253,5.23728141,144.5,144.48,6.9175]
[1750885947450,6.9164,144.51,144.47,15.5241544]
[1750885947650,5.25189825,144.5,144.47,15.5241544]
[1750885947852,6.9164,144.51,144.47,15.5241544]
[1750885948152,5.25186444,144.5,144.47,15.5241544]
[1750885948355,5.25177997,144.49,144.47,15.5241544]
[1750885948655,44.0959,144.52,144.48,6.9173]
[1750885948955,5.25228014,144.51,144.47,8.6063544]
[1750885949156,5.25228014,144.5,144.47,15.5241544]
[1750885949353,6.9164,144.51,144.47,8.6063544]
[1750885949552,6.9164,144.51,144.46,4.38700903]
[1750885949553,5.25225224,144.5,144.48,8.6063544]
[1750885949858,44.0959,144.52,144.48,15.5238544]
[1750885950046,5.25280105,144.51,144.48,15.5238544]
[1750885950242,5.25280105,144.5,144.48,8.6063544]
[1750885950448,4.41770615,144.55,144.48,17.29654063]
[1750885950654,5.25356336,144.54,144.5,4.38700903]
[1750885950839,5.25356336,144.53,144.5,4.38700903]
[1750885951040,5.25356336,144.52,144.51,6.9161]
[1750885951247,6.74770903,144.57,144.5,4.38700903]
[1750885951552,9.67369447,144.55,144.5,4.38700903]
[1750885951751,5.25459988,144.54,144.51,6.9157]
[1750885952051,5.25459988,144.53,144.51,6.9157]
[1750885952254,6.9144,144.55,144.51,15.53834388]
[1750885952452,5.25136263,144.54,144.51,6.9157]
[1750885952760,5.25136263,144.53,144.52,6.9156]
[1750885953058,6.9144,144.55,144.52,6.9156]
[1750885953351,5.2513952,144.54,144.52,6.9156]
[1750885953554,6.9144,144.55,144.52,6.9156]
[1750885953754,5.25213512,144.54,144.52,6.9156]
[1750885953958,6.9144,144.55,144.5,4.38700903]
[1750885953959,6.9144,144.55,144.51,15.53808083]
[1750885954147,5.25372689,144.54,144.51,15.53808083]
[1750885954364,4.42297778,144.56,144.51,6.9159]
[1750885954562,2.3607,144.57,144.51,6.9159]
[1750885954563,5.25368934,144.55,144.51,15.5324305]
[1750885954752,5.25368934,144.54,144.51,15.5324305]
[1750885954952,6.9145,144.55,144.52,6.9156]
[1750885955151,5.2498596,144.54,144.52,6.9156]
[1750885955351,6.9139,144.56,144.52,6.9156]
[1750885955549,5.24944662,144.55,144.52,6.9156]
[1750885955854,5.24944662,144.54,144.52,6.9156]
[1750885956056,6.9139,144.56,144.52,6.9156]
[1750885956250,5.24944638,144.55,144.53,6.915]
[1750885956457,6.9135,144.57,144.53,6.915]
[1750885956657,5.24956458,144.56,144.53,6.915]
[1750885956961,6.9138,144.56,144.52,15.5319305]
[1750885957257,39.385,144.58,144.52,15.5319305]
[1750885957558,6.9139,144.56,144.52,6.9154]
[1750885958059,6.9139,144.56,144.53,6.9151]
[1750885958256,6.9139,144.56,144.51,45.6165305]
[1750885958663,6.9139,144.56,144.52,6.9154]
[1750885960362,6.9139,144.56,144.53,6.915]
[1750885965569,6.9135,144.57,144.53,6.915]
[1750885968774,6.9137,144.56,144.53,6.915]
[1750885972378,39.385,144.58,144.52,4.38700903]
[1750885972568,5.26174478,144.57,144.52,4.38700903]
[1750885972768,39.385,144.58,144.52,4.38185205]
[1750885973072,46.2981,144.58,144.54,6.9143]
[1750885973768,6.9132,144.57,144.54,6.9143]
[1750885974371,46.298,144.58,144.55,6.9142]
[1750885975275,6.913,144.58,144.55,6.9142]
[1750885975482,37.0,144.61,144.54,4.38185205]
[1750885975671,5.26453619,144.6,144.54,4.38185205]
[1750885975977,5.26453619,144.59,144.54,4.38185205]
[1750885976179,6.9126,144.59,144.55,6.9139]
[1750885976979,6.9131,144.58,144.55,6.9139]
[1750885977380,6.9131,144.58,144.54,11.29625205]
[1750885977781,6.9136,144.57,144.54,4.38185205]
[1750885978572,6.9136,144.57,144.54,11.29645205]
[1750885983790,41.44587027,144.61,144.53,4.38096263]
[1750885983985,5.2803829,144.6,144.55,4.38096263]
[1750885984186,4.44587027,144.63,144.55,41.18096263]
[1750885984493,14.1065091,144.62,144.55,36.8]
[1750885984680,9.72554647,144.61,144.55,36.8]
[1750885984980,6.9127,144.59,144.55,43.7142]
[1750885985285,5.28148643,144.58,144.55,43.7142]
[1750885985488,6.913,144.58,144.55,43.7142]
[1750885987291,6.9134,144.57,144.55,36.8]
[1750885987486,6.9134,144.57,144.54,6.9144]
[1750885989484,6.9138,144.56,144.53,6.915]
[1750885990079,6.9138,144.56,144.49,137.54]
[1750885990080,6.9152,144.53,144.51,8.6165305]
[1750885990281,6.9152,144.53,144.5,8.6165305]
[1750885990806,6.9152,144.53,144.5,6.9165]
[1750885992687,36.8,144.56,144.49,12.99749313]
[1750885992996,4.38096263,144.53,144.48,45.4165305]
[1750885993194,5.28913618,144.52,144.48,45.4165305]
[1750885993389,6.9705,144.55,144.49,8.6165305]
[1750885993696,4.38096263,144.52,144.47,8.6165305]
[1750885993992,12.21126141,144.51,144.47,15.5342305]
[1750885994196,5.29496141,144.5,144.47,15.5342305]
[1750885994398,6.9163,144.51,144.47,15.5342305]
[1750885994691,5.30048397,144.5,144.47,15.5342305]
[1750885994892,6.9163,144.51,144.47,15.5342305]
[1750885996093,6.9166,144.5,144.47,8.6165305]
[1750885996496,6.9171,144.49,144.47,8.6165305]
[1750885996693,4.38096263,144.52,144.46,15.5348305]
[1750885997002,5.29723219,144.51,144.46,15.5348305]
[1750885997197,12.21403219,144.5,144.46,15.5348305]
[1750885997394,6.9168,144.5,144.46,15.5348305]
[1750886000189,6.9168,144.5,144.46,6.9183]
[1750886000388,6.9168,144.5,144.47,6.918]
[1750886003998,6.9172,144.49,144.46,6.9183]
[1750886004798,41.20096263,144.52,144.43,15.35429313]
[1750886004991,5.2284294,144.51,144.43,15.35429313]
[1750886005189,4.38096263,144.48,144.43,15.5364305]
[1750886005501,4.38096263,144.48,144.43,8.6165305]
[1750886005701,4.38096263,144.48,144.42,45.4365305]
[1750886005999,6.9187,144.46,144.43,6.9197]
[1750886007692,6.9192,144.45,144.42,43.7402]
[1750886008094,6.9192,144.45,144.42,6.9202]
[1750886009008,6.92,144.43,144.4,19.91859313]
[1750886009303,41.20096263,144.48,144.4,4.38096263]
[1750886009696,6.9196,144.44,144.41,6.9207]
[1750886011506,6.92,144.43,144.38,649.46429313]
[1750886011802,6.92,144.43,144.38,647.07749313]
[1750886012001,6.92,144.43,144.39,6.9216]
[1750886012596,6.9205,144.42,144.39,6.9216]
[1750886013409,6.9205,144.42,144.38,47.96316263]
[1750886014110,6.9205,144.42,144.39,6.9217]
[1750886015409,6.9202,144.43,144.39,6.9217]
[1750886015709,4.38096263,144.46,144.39,6.9217]
[1750886016103,4.39072117,144.45,144.39,6.9217]
[1750886016305,4.39072117,144.45,144.36,8.6165305]
[1750886016306,4.39072117,144.43,144.36,4.39072117]
[1750886016502,41.07072117,144.43,144.36,4.39072117]
[1750886016902,6.9214,144.4,144.37,6.9226]
[1750886019813,6.9219,144.39,144.36,6.9231]
[1750886020624,43.44143212,144.43,144.35,41.07233212]
[1750886022121,36.68,144.43,144.37,4.39233212]
[1750886022578,36.68,144.46,144.39,4.39233212]
[1750886022721,6.9199,144.44,144.41,6.9207]
[1750886025132,6.9201,144.43,144.4,6.9212]
[1750886025425,41.07233212,144.46,144.37,4.39233212]
[1750886026012,41.07233212,144.46,144.39,4.39233212]
[1750886026420,41.07233212,144.46,144.35,45.2965305]
[1750886026421,41.07233212,144.46,144.37,4.39233212]
[1750886027227,6.9207,144.42,144.37,4.39233212]
[1750886027723,6.9212,144.41,144.35,4.39233212]
[1750886028024,6.9212,144.41,144.36,36.68]
[1750886029420,6.9212,144.41,144.37,6.9225]
[1750886029820,5.16300712,144.44,144.36,36.68]
[1750886030031,4.39233212,144.44,144.36,36.68]
[1750886030332,6.9216,144.4,144.36,36.68]
[1750886030517,2.2456,144.43,144.36,43.6031]
[1750886030722,41.07233212,144.42,144.36,43.6031]
[1750886031227,41.07233212,144.42,144.37,6.9228]
[1750886031528,36.68,144.42,144.36,36.68]
[1750886031830,6.9216,144.4,144.37,6.9228]
[1750886034735,41.07233212,144.42,144.33,43.34383212]
[1750886034920,45.82693212,144.42,144.33,43.34383212]
[1750886035328,2.2456,144.43,144.37,4.39233212]
[1750886035835,9.1659,144.43,144.4,6.9213]
[1750886036539,6.9205,144.42,144.39,6.9216]
[1750886038241,2.2456,144.43,144.37,4.39233212]
[1750886038242,6.921,144.41,144.38,6.9221]
[1750886040338,6.9214,144.4,144.37,6.9226]
[1750886040542,5.12831328,144.42,144.35,6.66713212]
[1750886040835,6.9211,144.41,144.35,6.66713212]
[1750886041048,6.9211,144.41,144.38,6.9221]
[1750886042939,2.2456,144.43,144.36,4.39233212]
[1750886043445,6.9211,144.41,144.37,6.9223]
[1750886044443,6.9211,144.41,144.38,6.9223]
[1750886044632,2.2456,144.43,144.38,6.9223]
[1750886044833,12.05288777,144.42,144.36,4.39233212]
[1750886045037,6.9207,144.42,144.36,4.39233212]
[1750886045244,2.2456,144.43,144.36,4.39233212]
[1750886045446,6.9211,144.41,144.36,4.39233212]
[1750886046442,6.9211,144.41,144.36,13.00886262]
[1750886046845,6.63793212,144.43,144.35,10.8913305]
[1750886047144,6.63793212,144.43,144.36,8.6165305]
[1750886048341,6.921,144.41,144.38,6.9221]
[1750886050547,6.921,144.41,144.39,6.9218]
[1750886050731,6.921,144.41,144.37,8.6165305]
[1750886051140,6.921,144.41,144.38,6.9221]
[1750886052748,6.63793212,144.43,144.37,15.5389305]
[1750886053047,5.1459147,144.42,144.37,8.6165305]
[1750886053235,5.1459147,144.41,144.37,8.6165305]
[1750886053438,6.9213,144.41,144.38,6.9223]
[1750886054435,4.39233212,144.4,144.37,8.6165305]
[1750886054632,4.39233212,144.38,144.35,8.6165305]
[1750886054836,4.39233212,144.36,144.33,8.6165305]
[1750886055747,4.39233212,144.36,144.32,8.6165305]
[1750886056044,6.9239,144.35,144.33,8.6165305]
[1750886056641,6.9239,144.35,144.32,15.5414305]
[1750886057040,6.9239,144.35,144.33,6.9247]
[1750886057244,6.9239,144.35,144.33,8.6165305]
[1750886057544,6.9239,144.35,144.32,15.5413305]
[1750886058151,6.9239,144.35,144.33,6.9247]
[1750886058448,6.9239,144.35,144.32,8.6165305]
[1750886058647,6.9239,144.35,144.32,15.5413305]
[1750886062565,38.8439,144.37,144.32,8.6165305]
[1750886062751,4.39233212,144.36,144.32,8.6165305]
[1750886063058,6.9246,144.34,144.32,8.6165305]
[1750886063547,6.9246,144.34,144.31,15.5420305]
[1750886063751,4.39233212,144.36,144.32,6.9249]
[1750886064856,6.9239,144.35,144.32,6.9249]
[1750886065249,4.39233212,144.36,144.32,6.9249]
[1750886065748,6.9239,144.35,144.32,6.9249]
[1750886066358,6.9243,144.34,144.32,6.9249]
[1750886067255,4.39233212,144.34,144.31,6.9254]
[1750886067651,6.925,144.33,144.31,6.9254]
[1750886068258,4.7462,144.36,144.3,8.6165305]
[1750886068454,9.83788753,144.41,144.34,4.39233212]
[1750886068650,5.14738623,144.4,144.34,4.39233212]
[1750886068850,6.9219,144.39,144.36,6.9229]
[1750886069049,36.56,144.41,144.36,6.9229]
[1750886069352,5.1485797,144.4,144.36,6.9229]
[1750886069662,36.56,144.41,144.36,6.9229]
[1750886069854,5.14954694,144.4,144.36,6.9229]
[1750886070051,6.9226,144.38,144.36,6.9229]
[1750886070751,6.9221,144.39,144.36,6.9229]
[1750886071354,40.95233212,144.41,144.36,6.9229]
[1750886071555,5.15017422,144.4,144.36,6.9229]
[1750886071857,40.95233212,144.41,144.36,6.9229]
[1750886072059,5.15168029,144.4,144.36,6.9229]
[1750886072261,40.95233212,144.41,144.36,6.9229]
[1750886072458,5.15168029,144.4,144.36,6.9229]
[1750886072661,40.95233212,144.41,144.35,6.9236]
[1750886072863,6.9226,144.38,144.34,8.6165305]
[1750886073961,6.9226,144.38,144.36,6.9232]
[1750886075158,36.56,144.41,144.35,4.39233212]
[1750886075362,5.17360064,144.4,144.35,13.00886262]
[1750886075559,36.56,144.41,144.35,13.00886262]
[1750886075861,6.9218,144.4,144.37,6.9226]
[1750886076260,6.9218,144.4,144.37,15.5391305]
[1750886076462,6.922,144.39,144.37,8.6165305]
[1750886077057,6.922,144.39,144.36,15.5396305]
[1750886078759,36.56,144.41,144.37,6.9228]
[1750886078963,6.9216,144.4,144.37,6.9228]
[1750886080767,6.9219,144.39,144.37,6.9228]
[1750886081763,6.9219,144.39,144.36,15.5395305]
[1750886082369,36.56,144.41,144.36,6.923]
[1750886082585,5.18473989,144.4,144.36,6.923]
[1750886082765,36.56,144.41,144.36,6.923]
[1750886082959,6.9222,144.39,144.36,6.923]
[1750886083251,36.56,144.41,144.36,6.923]
[1750886083452,6.9221,144.39,144.36,6.923]
[1750886084065,6.9225,144.38,144.36,6.923]
[1750886084566,6.9222,144.39,144.36,6.923]
[1750886084762,36.56,144.41,144.36,6.923]
[1750886085068,9.90035816,144.4,144.36,6.923]
[1750886085261,6.9223,144.38,144.36,6.923]
[1750886086768,6.9221,144.39,144.36,6.923]
[1750886087768,4.71604319,144.4,144.36,6.923]
[1750886088070,5.18031166,144.39,144.36,6.923]
[1750886088269,6.9223,144.39,144.36,6.923]
[1750886089870,6.9224,144.38,144.36,6.923]
[1750886091270,6.9228,144.37,144.35,15.5401305]
[1750886091462,4.39233212,144.4,144.34,8.6165305]
[1750886091659,5.17725549,144.39,144.34,8.6165305]
[1750886091884,5.17725549,144.38,144.34,8.6165305]
[1750886092069,6.9238,144.35,144.33,8.6165305]
[1750886092569,6.9243,144.34,144.33,8.6165305]
[1750886092773,6.9243,144.34,144.32,15.5414305]
[1750886095564,6.9243,144.34,144.32,8.6165305]
[1750886097068,6.9247,144.33,144.32,8.6165305]
[1750886097470,4.39233212,144.36,144.32,8.6165305]
[1750886097673,6.9247,144.34,144.32,8.6165305]
[1750886097874,4.39233212,144.36,144.32,8.6165305]
[1750886098372,36.4,144.37,144.32,8.6165305]
[1750886098571,36.4,144.37,144.33,8.6165305]
[1750886098771,43.3231,144.37,144.34,6.9239]
[1750886099273,43.3231,144.37,144.34,15.5404305]
[1750886100672,6.9231,144.37,144.34,15.5404305]
[1750886101668,36.4,144.4,144.35,6.9238]
[1750886101980,5.15354361,144.39,144.35,8.6165305]
[1750886102170,6.9222,144.39,144.36,6.9229]
[1750886102782,36.4,144.4,144.35,13.00886262]
[1750886102984,2.328,144.42,144.36,8.6165305]
[1750886103277,9.89198539,144.41,144.36,8.6165305]
[1750886103476,2.328,144.42,144.37,8.6165305]
[1750886103674,6.9216,144.4,144.37,15.5392305]
[1750886103884,2.328,144.42,144.37,8.6165305]
[1750886104075,9.88960058,144.41,144.37,8.6165305]
[1750886104275,6.9223,144.39,144.36,15.5398305]
[1750886105577,6.9223,144.39,144.37,6.9227]
[1750886105781,2.328,144.42,144.36,8.6165305]
[1750886106072,9.88716353,144.41,144.36,8.6165305]
[1750886106276,6.9216,144.4,144.36,8.6165305]
[1750886106674,2.328,144.42,144.36,8.6165305]
[1750886106875,9.9156009,144.41,144.36,8.6165305]
[1750886107175,5.18070832,144.4,144.36,8.6165305]
[1750886107374,6.9215,144.4,144.37,6.9226]
[1750886107580,126.17055099,144.43,144.38,8.6165305]
[1750886108277,6.9205,144.42,144.39,6.9216]
[1750886108483,126.17055099,144.43,144.39,8.6165305]
[1750886108982,133.09055099,144.43,144.4,6.9212]
[1750886109382,126.17055099,144.43,144.38,8.6165305]
[1750886109582,126.17055099,144.43,144.39,8.6165305]
[1750886109973,36.26,144.45,144.39,8.6165305]
[1750886109974,43.1792,144.45,144.4,8.6165305]
[1750886110277,36.26,144.45,144.4,8.6165305]
[1750886110883,12.09937696,144.44,144.41,6.9208]
[1750886111085,36.26,144.45,144.39,4.39233212]
[1750886111383,12.09947026,144.44,144.4,6.9209]
[1750886111572,6.9198,144.44,144.4,6.9209]
[1750886111775,36.26,144.45,144.39,4.39233212]
[1750886111988,4.9217,144.47,144.39,4.39233212]
[1750886112281,5.18052517,144.46,144.4,36.24]
[1750886112484,9.3585,144.47,144.43,6.9196]
[1750886112685,2.3135,144.51,144.41,4.39233212]
[1750886112887,46.1845924,144.5,144.43,4.39233212]
[1750886113087,16.85347727,144.49,144.45,6.9187]
[1750886113285,5.17722744,144.48,144.45,6.9187]
[1750886113490,6.9173,144.49,144.45,6.9187]
[1750886113681,5.17719058,144.48,144.45,6.9187]
[1750886113985,6.9173,144.49,144.45,6.9187]
[1750886114212,5.17715747,144.48,144.44,8.61467894]
[1750886114380,43.1568,144.5,144.44,8.61467894]
[1750886114578,36.24,144.5,144.44,8.61467894]
[1750886115084,6.9174,144.49,144.46,6.9183]
[1750886121388,6.9174,144.49,144.45,6.9188]
[1750886122494,6.9174,144.49,144.46,6.9184]
[1750886123997,43.1568,144.5,144.46,6.9184]
[1750886125398,36.24,144.5,144.47,6.9179]
[1750886125601,9.3385,144.51,144.47,6.9179]
[1750886126195,2.4221,144.51,144.47,6.9179]
[1750886126701,9.3386,144.51,144.47,6.9179]
[1750886128108,6.916,144.52,144.46,4.38659706]
[1750886128605,6.916,144.52,144.49,6.9169]
[1750886132813,600.3294,144.55,144.5,6.9163]
[1750886133012,2.2694,144.55,144.48,36.1]
[1750886133513,6.9154,144.53,144.5,6.9165]
[1750886135110,36.1,144.56,144.49,4.38444652]
[1750886136015,6.9145,144.55,144.52,6.9156]
[1750886137014,6.9145,144.55,144.51,6.9159]
[1750886138814,36.1,144.56,144.49,4.38444652]
[1750886139004,40.48444652,144.56,144.49,4.38444652]
[1750886139814,6.9149,144.54,144.49,4.38444652]
[1750886140112,6.9149,144.54,144.46,4.7551]
[1750886140113,4.38474698,144.53,144.46,4.7551]
[1750886140314,4.38474698,144.53,144.48,6.9173]
[1750886140315,6.9159,144.52,144.48,6.9173]
[1750886140510,4.38539834,144.54,144.46,9.14049834]
[1750886141913,4.38539834,144.54,144.46,4.7551]
[1750886142116,4.38539834,144.54,144.46,9.14049834]
[1750886142314,4.38539834,144.54,144.46,4.38539834]
[1750886142709,2.3371,144.55,144.45,36.08]
[1750886142710,6.9167,144.5,144.45,36.08]
[1750886143219,6.9173,144.49,144.45,36.08]
[1750886143806,6.9173,144.49,144.45,42.9987]
[1750886145414,6.9173,144.49,144.46,6.9185]
[1750886146011,6.9168,144.5,144.46,6.9185]
[1750886147618,6.9172,144.49,144.46,6.9185]
[1750886149812,6.9168,144.5,144.47,6.918]
[1750886150118,2.406,144.51,144.45,36.08]
[1750886150322,5.22281602,144.5,144.45,36.08]
[1750886150619,2.406,144.51,144.45,36.08]
[1750886150819,5.22312414,144.5,144.45,36.08]
[1750886151020,2.406,144.51,144.45,36.08]
[1750886151219,6.9171,144.49,144.46,6.9183]
[1750886155029,2.406,144.51,144.45,36.08]
[1750886155225,9.60650094,144.5,144.44,8.61467894]
[1750886155438,9.60650094,144.5,144.38,31.07365788]
[1750886155439,5.2211026,144.49,144.41,8.61467894]
[1750886155725,4.38539834,144.46,144.42,6.9203]
[1750886156120,6.9194,144.45,144.42,6.9203]
[1750886156322,4.38539834,144.46,144.42,6.9203]
[1750886157419,6.9191,144.45,144.42,6.9203]
[1750886157729,4.38539834,144.46,144.42,6.9203]
[1750886157932,6.9191,144.45,144.42,6.9203]
[1750886158122,4.38539834,144.46,144.41,15.53073835]
[1750886158321,6.9192,144.45,144.41,8.61003835]
[1750886158525,4.38539834,144.46,144.41,8.61003835]
[1750886158717,4.38539834,144.46,144.39,8.61003835]
[1750886159130,6.9202,144.43,144.4,6.9211]
[1750886159536,4.38539834,144.46,144.39,8.61003835]
[1750886159729,6.9208,144.42,144.39,15.53173835]
[1750886159930,40.48539834,144.44,144.39,6.9217]
[1750886160334,40.48539834,144.44,144.38,8.61003835]
[1750886160527,4.38539834,144.42,144.36,44.71003835]
[1750886161037,6.9222,144.39,144.36,51.63313835]
[1750886161239,6.9222,144.39,144.36,43.0231]
[1750886161537,6.9222,144.39,144.37,6.9228]
[1750886162541,6.9222,144.39,144.36,43.0231]
[1750886163438,6.9222,144.39,144.36,6.9231]
[1750886164929,40.40539834,144.4,144.33,36.02]
[1750886165146,36.02,144.39,144.33,36.02]
[1750886166034,6.9224,144.38,144.35,6.9235]
[1750886167742,42.942,144.39,144.35,6.9235]
[1750886167942,40.40539834,144.42,144.34,4.38539834]
[1750886168143,40.40539834,144.42,144.34,6.86839834]
[1750886169144,36.02,144.42,144.34,6.86839834]
[1750886169344,6.9211,144.41,144.38,6.9223]
[1750886169945,6.9211,144.41,144.34,6.86839834]
[1750886169946,6.9211,144.41,144.37,6.9226]
[1750886170444,6.9211,144.41,144.35,4.38539834]
[1750886171443,6.9211,144.41,144.37,6.9225]
[1750886172652,6.9214,144.4,144.37,6.9225]
[1750886174640,40.40539834,144.42,144.34,4.38539834]
[1750886174850,4.38539834,144.4,144.33,36.02]